[Event "*** Titled Tuesday 3|2 Blitz"]
[Site "Chess.com"]
[Date "2015.09.01"]
[Round "7"]
[White "Tal-Baronfew"]
[Black "Danirod"]
[Result "1-0"]
[WhiteElo "2720"]
[BlackElo "2366"]
[TimeControl "180+2"]
[EndTime "12:23:57 PDT"]
[Termination "Tal-Baronfew won by resignation"]

1. d4 {[%clk 0:03:01.9]} 1... Nf6 {[%clk 0:03:00.7]} 2. c4 {[%clk 0:03:02.1]}
2... e6 {[%clk 0:03:01.8]} 3. Nc3 {[%clk 0:03:02.5]} 3... Bb4 {[%clk 0:03:02.7]}
4. f3 {[%clk 0:03:01.9]} 4... O-O {[%clk 0:02:52.6]} 5. a3 {[%clk 0:03:03.2]}
5... Bxc3+ {[%clk 0:02:53.4]} 6. bxc3 {[%clk 0:03:04.9]} 6... d5 {[%clk
0:02:54.6]} 7. cxd5 {[%clk 0:03:06.6]} 7... exd5 {[%clk 0:02:55.7]} 8. e3 {[%clk
0:03:08]} 8... Nbd7 {[%clk 0:02:56.9]} 9. Bd3 {[%clk 0:03:09.5]} 9... c5 {[%clk
0:02:58.2]} 10. Ne2 {[%clk 0:03:11]} 10... b6 {[%clk 0:02:59.7]} 11. O-O {[%clk
0:03:12.1]} 11... Re8 {[%clk 0:03:01.2]} 12. Ng3 {[%clk 0:03:13.2]} 12... Bb7
{[%clk 0:03:02.3]} 13. Ra2 {[%clk 0:03:13.4]} 13... Rc8 {[%clk 0:03:03.3]} 14.
Re2 {[%clk 0:03:14.7]} 14... Qc7 {[%clk 0:02:58.9]} 15. Bb2 {[%clk 0:03:06.1]}
15... Rcd8 {[%clk 0:02:32.7]} 16. Kh1 {[%clk 0:03:07]} 16... Nf8 {[%clk
0:02:30.7]} 17. Nf5 {[%clk 0:02:58.8]} 17... Ne6 {[%clk 0:02:30.3]} 18. Qe1
{[%clk 0:02:53.8]} 18... Qc8 {[%clk 0:02:16.1]} 19. Qh4 {[%clk 0:02:52.7]} 19...
Ba6 {[%clk 0:02:12.2]} 20. Bxa6 {[%clk 0:02:48.3]} 20... Qxa6 {[%clk 0:02:12.9]}
21. Rfe1 {[%clk 0:02:46.3]} 21... Qd3 {[%clk 0:02:13.6]} 22. e4 {[%clk
0:02:09.2]} 22... Kh8 {[%clk 0:00:33.2]} 23. h3 {[%clk 0:01:34.4]} 23... g5
{[%clk 0:00:24.6]} 24. Qh6 {[%clk 0:01:28.7]} 24... Ng8 {[%clk 0:00:25.4]} 25.
Qh5 {[%clk 0:01:27.7]} 25... Nf6 {[%clk 0:00:26.7]} 26. Qxf7 {[%clk 0:01:26.7]}
26... Nh5 {[%clk 0:00:20.6]} 27. Qxh5 {[%clk 0:01:22.4]} 1-0

[Event "*** Titled Tuesday 3|2 Blitz"]
[Site "Chess.com"]
[Date "2015.09.01"]
[Round "7"]
[White "ArnaudovP"]
[Black "kikydu96"]
[Result "0-1"]
[WhiteElo "2321"]
[BlackElo "2182"]
[TimeControl "180+2"]
[EndTime "12:24:23 PDT"]
[Termination "kikydu96 won by resignation"]

1. d4 {[%clk 0:03:01.9]} 1... d5 {[%clk 0:03:00.6]} 2. c4 {[%clk 0:03:02.2]}
2... c6 {[%clk 0:03:01.8]} 3. Nf3 {[%clk 0:03:02.6]} 3... Nf6 {[%clk 0:03:02.9]}
4. Nc3 {[%clk 0:03:03.3]} 4... dxc4 {[%clk 0:03:03.5]} 5. e3 {[%clk 0:03:02.7]}
5... b5 {[%clk 0:03:03.8]} 6. a4 {[%clk 0:03:02.4]} 6... b4 {[%clk 0:03:00.6]}
7. Na2 {[%clk 0:03:02.8]} 7... e6 {[%clk 0:03:01.7]} 8. Bxc4 {[%clk 0:03:03.4]}
8... Be7 {[%clk 0:03:00.6]} 9. O-O {[%clk 0:03:04.8]} 9... O-O {[%clk
0:03:01.8]} 10. Qe2 {[%clk 0:03:05.7]} 10... a5 {[%clk 0:03:02.7]} 11. Rd1
{[%clk 0:03:03.4]} 11... Bb7 {[%clk 0:03:03.6]} 12. Bd2 {[%clk 0:03:04.5]} 12...
Nbd7 {[%clk 0:03:04.7]} 13. Nc1 {[%clk 0:03:04.8]} 13... Qc7 {[%clk 0:03:06]}
14. Nb3 {[%clk 0:03:05.6]} 14... e5 {[%clk 0:03:06.9]} 15. dxe5 {[%clk
0:03:02.8]} 15... Nxe5 {[%clk 0:03:07.7]} 16. Nxe5 {[%clk 0:03:04.3]} 16... Qxe5
{[%clk 0:03:09.2]} 17. Be1 {[%clk 0:03:05.2]} 17... Bd6 {[%clk 0:03:03.4]} 18.
g3 {[%clk 0:02:57.3]} 18... c5 {[%clk 0:03:04.5]} 19. f3 {[%clk 0:02:55.5]}
19... Rfe8 {[%clk 0:02:59.4]} 20. Bf2 {[%clk 0:02:54.9]} 20... Rad8 {[%clk
0:02:58]} 21. e4 {[%clk 0:02:54.9]} 21... h5 {[%clk 0:02:48]} 22. Re1 {[%clk
0:02:48.6]} 22... h4 {[%clk 0:02:48.4]} 23. Rad1 {[%clk 0:02:48.8]} 23... hxg3
{[%clk 0:02:48.8]} 24. hxg3 {[%clk 0:02:49.2]} 24... Qg5 {[%clk 0:02:49.9]} 25.
Rxd6 {[%clk 0:02:40.2]} 25... Rxd6 {[%clk 0:02:46.1]} 26. Nxc5 {[%clk
0:02:36.8]} 26... Bc8 {[%clk 0:02:39.1]} 27. f4 {[%clk 0:02:32.3]} 27... Qh6
{[%clk 0:02:19.4]} 28. e5 {[%clk 0:02:23.2]} 28... Ng4 {[%clk 0:02:20]} 29. Be3
{[%clk 0:02:23.8]} 29... Rg6 {[%clk 0:02:17.2]} 30. Bd3 {[%clk 0:02:24.5]} 30...
Qh3 {[%clk 0:01:54.1]} 31. Qg2 {[%clk 0:02:18.5]} 31... Rh6 {[%clk 0:01:44.3]}
32. Be4 {[%clk 0:02:11.9]} 32... Nxe3 {[%clk 0:01:36.7]} 33. Rxe3 {[%clk
0:02:11.4]} 33... Rd8 {[%clk 0:01:36.5]} 34. Qxh3 {[%clk 0:02:10.9]} 34... Rxh3
{[%clk 0:01:33.7]} 35. Nd3 {[%clk 0:02:02.6]} 35... Ba6 {[%clk 0:01:30.7]} 36.
Nf2 {[%clk 0:02:03.1]} 36... Rh6 {[%clk 0:01:29.4]} 37. Bd3 {[%clk 0:02:00.2]}
37... Bb7 {[%clk 0:01:24.7]} 38. f5 {[%clk 0:01:53.8]} 38... Rc6 {[%clk
0:01:23.4]} 39. Kg2 {[%clk 0:01:53.3]} 39... Rc2+ {[%clk 0:01:18]} 40. Be4
{[%clk 0:01:52.5]} 40... Bxe4+ {[%clk 0:01:15.2]} 41. Rxe4 {[%clk 0:01:53.7]}
41... Rdd2 {[%clk 0:01:16]} 42. Rf4 {[%clk 0:01:54.9]} 42... Rxb2 {[%clk
0:01:17.3]} 43. e6 {[%clk 0:01:54.3]} 43... fxe6 {[%clk 0:01:16.7]} 44. fxe6
{[%clk 0:01:55.6]} 44... Rxf2+ {[%clk 0:01:13.7]} 45. Rxf2 {[%clk 0:01:55.3]}
45... Rxf2+ {[%clk 0:01:14.9]} 46. Kxf2 {[%clk 0:01:57.2]} 46... b3 {[%clk
0:01:16.3]} 0-1

[Event "*** Titled Tuesday 3|2 Blitz"]
[Site "Chess.com"]
[Date "2015.09.01"]
[Round "7"]
[White "E-Shaposhnikov"]
[Black "PowerThinking2650"]
[Result "1-0"]
[WhiteElo "2428"]
[BlackElo "2095"]
[TimeControl "180+2"]
[EndTime "12:25:13 PDT"]
[Termination "E-Shaposhnikov won by resignation"]

1. Nf3 {[%clk 0:02:21.6]} 1... Nf6 {[%clk 0:03:00.4]} 2. c4 {[%clk 0:02:22.7]}
2... g6 {[%clk 0:03:01.5]} 3. Nc3 {[%clk 0:02:22.2]} 3... Bg7 {[%clk 0:03:02.6]}
4. e4 {[%clk 0:02:23.9]} 4... d6 {[%clk 0:03:03.7]} 5. d4 {[%clk 0:02:25.6]}
5... O-O {[%clk 0:03:04.9]} 6. Be2 {[%clk 0:02:27.2]} 6... e5 {[%clk 0:03:05.9]}
7. O-O {[%clk 0:02:28.7]} 7... Nc6 {[%clk 0:03:06.9]} 8. d5 {[%clk 0:02:30.3]}
8... Ne7 {[%clk 0:03:07.9]} 9. b4 {[%clk 0:02:30.9]} 9... Nh5 {[%clk 0:03:08.2]}
10. g3 {[%clk 0:02:31.6]} 10... f5 {[%clk 0:03:07.9]} 11. Ng5 {[%clk 0:02:33.2]}
11... Nf6 {[%clk 0:03:08.7]} 12. Bf3 {[%clk 0:02:34.8]} 12... fxe4 {[%clk
0:03:03.5]} 13. Ncxe4 {[%clk 0:02:34.4]} 13... Nxe4 {[%clk 0:02:59.3]} 14. Bxe4
{[%clk 0:02:30.6]} 14... Nf5 {[%clk 0:02:55.6]} 15. b5 {[%clk 0:02:23.8]} 15...
Nd4 {[%clk 0:02:47.8]} 16. Be3 {[%clk 0:02:21.1]} 16... h6 {[%clk 0:02:08.5]}
17. Bxg6 {[%clk 0:01:44.9]} 17... hxg5 {[%clk 0:01:50.1]} 18. Qh5 {[%clk
0:01:43.7]} 18... Nf3+ {[%clk 0:01:37.7]} 19. Kg2 {[%clk 0:01:43]} 19... Rf6
{[%clk 0:01:32.7]} 20. Rh1 {[%clk 0:01:14.5]} 20... Bd7 {[%clk 0:01:14.2]} 21.
h4 {[%clk 0:00:49.3]} 21... Be8 {[%clk 0:01:04.5]} 22. Qh7+ {[%clk 0:00:46.6]}
22... Kf8 {[%clk 0:01:05.2]} 23. Bxe8 {[%clk 0:00:44.9]} 23... Qxe8 {[%clk
0:01:03.4]} 24. hxg5 {[%clk 0:00:44.1]} 24... Rf7 {[%clk 0:00:54.3]} 25. g6
{[%clk 0:00:44.2]} 25... Rf5 {[%clk 0:00:47.7]} 26. Bh6 {[%clk 0:00:40.8]} 26...
Bxh6 {[%clk 0:00:21.6]} 27. Rxh6 {[%clk 0:00:40]} 27... Rg5 {[%clk 0:00:13.4]}
28. Kxf3 {[%clk 0:00:24.2]} 1-0

[Event "*** Titled Tuesday 3|2 Blitz"]
[Site "Chess.com"]
[Date "2015.09.01"]
[Round "7"]
[White "arnacman"]
[Black "SidArun"]
[Result "1-0"]
[WhiteElo "2262"]
[BlackElo "1926"]
[TimeControl "180+2"]
[EndTime "12:25:18 PDT"]
[Termination "arnacman won by resignation"]

1. e4 {[%clk 0:03:00.9]} 1... c6 {[%clk 0:03:01.1]} 2. d4 {[%clk 0:03:00.3]}
2... d5 {[%clk 0:03:01.9]} 3. Nd2 {[%clk 0:03:01.6]} 3... dxe4 {[%clk
0:03:02.9]} 4. Nxe4 {[%clk 0:03:02.3]} 4... Bf5 {[%clk 0:03:04.8]} 5. Ng3 {[%clk
0:03:00.6]} 5... Bg6 {[%clk 0:03:05.9]} 6. h4 {[%clk 0:03:01.6]} 6... h6 {[%clk
0:03:06.7]} 7. Nf3 {[%clk 0:03:02.7]} 7... Nd7 {[%clk 0:03:07.2]} 8. h5 {[%clk
0:03:03.6]} 8... Bh7 {[%clk 0:03:08.4]} 9. Bd3 {[%clk 0:03:04.4]} 9... Bxd3
{[%clk 0:03:09.3]} 10. Qxd3 {[%clk 0:03:06.3]} 10... e6 {[%clk 0:03:10.9]} 11.
Bd2 {[%clk 0:03:06.9]} 11... Ngf6 {[%clk 0:03:11.8]} 12. O-O-O {[%clk
0:03:07.2]} 12... Be7 {[%clk 0:03:13.5]} 13. Ne4 {[%clk 0:03:05.5]} 13... Nxe4
{[%clk 0:03:14.4]} 14. Qxe4 {[%clk 0:03:04.8]} 14... Nf6 {[%clk 0:03:15.6]} 15.
Qe2 {[%clk 0:03:04.5]} 15... Qd5 {[%clk 0:03:16.7]} 16. Kb1 {[%clk 0:03:03.8]}
16... Qe4 {[%clk 0:03:17.9]} 17. Be3 {[%clk 0:03:01.3]} 17... Ng4 {[%clk
0:02:59.6]} 18. Nd2 {[%clk 0:02:33.2]} 18... Qf5 {[%clk 0:02:53.1]} 19. f3
{[%clk 0:02:31.5]} 19... Nxe3 {[%clk 0:02:53.1]} 20. Qxe3 {[%clk 0:02:31.1]}
20... Bg5 {[%clk 0:02:54.2]} 21. Qb3 {[%clk 0:02:29.1]} 21... Qa5 {[%clk
0:02:54.7]} 22. Qxb7 {[%clk 0:02:22.3]} 22... O-O {[%clk 0:02:55.1]} 23. Nb3
{[%clk 0:02:21.9]} 23... Qd5 {[%clk 0:02:54.1]} 24. Qa6 {[%clk 0:02:17.4]} 24...
Rfb8 {[%clk 0:02:54.2]} 25. Qa5 {[%clk 0:02:12.2]} 25... Rb5 {[%clk 0:02:54.2]}
26. Qe1 {[%clk 0:02:08.2]} 26... a5 {[%clk 0:02:51.7]} 27. Qe4 {[%clk
0:01:58.2]} 27... a4 {[%clk 0:02:35.5]} 28. Qxd5 {[%clk 0:01:57.7]} 28... cxd5
{[%clk 0:02:35.3]} 29. Nc5 {[%clk 0:01:55.7]} 29... Be7 {[%clk 0:02:35.1]} 30.
Nd3 {[%clk 0:01:54.7]} 30... Rab8 {[%clk 0:02:35.1]} 31. c3 {[%clk 0:01:51.1]}
31... Kf8 {[%clk 0:02:14.9]} 32. Kc2 {[%clk 0:01:51]} 32... Ke8 {[%clk
0:02:11.4]} 33. Rb1 {[%clk 0:01:48.6]} 33... Rc8 {[%clk 0:02:04.8]} 34. b4
{[%clk 0:01:43]} 34... Rc4 {[%clk 0:01:57.7]} 35. Nc5 {[%clk 0:01:38.3]} 35...
e5 {[%clk 0:01:44.5]} 36. Rhd1 {[%clk 0:01:23.5]} 36... Bxc5 {[%clk 0:01:30.5]}
37. dxc5 {[%clk 0:01:18.8]} 37... d4 {[%clk 0:01:24.4]} 38. Rd3 {[%clk
0:01:18.8]} 38... Ke7 {[%clk 0:01:21.9]} 39. a3 {[%clk 0:01:16.4]} 39... dxc3
{[%clk 0:01:16.6]} 40. Rxc3 {[%clk 0:01:16.5]} 40... Rh4 {[%clk 0:01:17.7]} 41.
g4 {[%clk 0:01:14.3]} 41... f5 {[%clk 0:01:13.5]} 42. Re1 {[%clk 0:01:10.5]}
42... fxg4 {[%clk 0:01:13.5]} 43. fxg4 {[%clk 0:01:09.4]} 43... Rxg4 {[%clk
0:01:13.9]} 44. Rxe5+ {[%clk 0:01:08.7]} 44... Kf6 {[%clk 0:01:15.1]} 45. Re2
{[%clk 0:01:09.3]} 45... Rb8 {[%clk 0:01:11.5]} 46. c6 {[%clk 0:01:04.6]} 46...
Rc8 {[%clk 0:01:07.3]} 47. b5 {[%clk 0:01:01.1]} 1-0

[Event "*** Titled Tuesday 3|2 Blitz"]
[Site "Chess.com"]
[Date "2015.09.01"]
[Round "7"]
[White "oggy1984"]
[Black "AnthonyWirig"]
[Result "0-1"]
[WhiteElo "2418"]
[BlackElo "2535"]
[TimeControl "180+2"]
[EndTime "12:25:38 PDT"]
[Termination "AnthonyWirig won on time"]

1. d4 {[%clk 0:03:01.9]} 1... Nf6 {[%clk 0:02:58.4]} 2. c4 {[%clk 0:03:01.4]}
2... e6 {[%clk 0:02:59.2]} 3. Nc3 {[%clk 0:03:02]} 3... Bb4 {[%clk 0:03:00.3]}
4. Qc2 {[%clk 0:03:02.2]} 4... b6 {[%clk 0:02:58.1]} 5. e4 {[%clk 0:03:01.2]}
5... c5 {[%clk 0:02:58.1]} 6. e5 {[%clk 0:02:58.5]} 6... cxd4 {[%clk 0:02:40.8]}
7. a3 {[%clk 0:02:53]} 7... Bxc3+ {[%clk 0:02:18.1]} 8. bxc3 {[%clk 0:02:52.4]}
8... Ng8 {[%clk 0:02:18.8]} 9. cxd4 {[%clk 0:02:44.9]} 9... Bb7 {[%clk
0:02:14.1]} 10. Ne2 {[%clk 0:02:37.2]} 10... Ne7 {[%clk 0:02:14.4]} 11. Nf4
{[%clk 0:02:35.2]} 11... Nbc6 {[%clk 0:02:13.9]} 12. Bb2 {[%clk 0:02:30.6]}
12... Rc8 {[%clk 0:02:09.5]} 13. Bd3 {[%clk 0:02:17.3]} 13... Na5 {[%clk
0:02:04.7]} 14. Nh5 {[%clk 0:02:10.8]} 14... Nxc4 {[%clk 0:01:53.5]} 15. Bxc4
{[%clk 0:02:05.7]} 15... b5 {[%clk 0:01:51.8]} 16. Nxg7+ {[%clk 0:02:05.9]}
16... Kf8 {[%clk 0:01:52.4]} 17. Nh5 {[%clk 0:02:05]} 17... Rxc4 {[%clk
0:01:17.2]} 18. Qd2 {[%clk 0:00:24.1]} 18... h6 {[%clk 0:01:17.8]} 19. O-O
{[%clk 0:00:21.5]} 19... Nf5 {[%clk 0:01:12.2]} 20. Nf6 {[%clk 0:00:12.2]} 20...
d6 {[%clk 0:01:06.3]} 21. d5 {[%clk 0:00:10.7]} 21... Ne7 {[%clk 0:00:18.1]} 22.
dxe6 {[%clk 0:00:05.3]} 22... d5 {[%clk 0:00:19.5]} 23. Qe2 {[%clk 0:00:03.7]}
23... Ng6 {[%clk 0:00:16.3]} 24. exf7 {[%clk 0:00:03.2]} 24... d4 {[%clk
0:00:14.5]} 25. Qh5 {[%clk 0:00:02.4]} 25... Nf4 {[%clk 0:00:11.2]} 0-1

[Event "*** Titled Tuesday 3|2 Blitz"]
[Site "Chess.com"]
[Date "2015.09.01"]
[Round "7"]
[White "PauloCesarCosta"]
[Black "Badouuu"]
[Result "0-1"]
[WhiteElo "2012"]
[BlackElo "1869"]
[TimeControl "180+2"]
[EndTime "12:26:00 PDT"]
[Termination "Badouuu won on time"]

1. Nf3 {[%clk 0:03:01.9]} 1... Nf6 {[%clk 0:02:56.9]} 2. c4 {[%clk 0:03:02.1]}
2... Nc6 {[%clk 0:02:56]} 3. d4 {[%clk 0:03:02.4]} 3... e6 {[%clk 0:02:56.7]} 4.
Bg5 {[%clk 0:02:59.7]} 4... Bb4+ {[%clk 0:02:41.3]} 5. Nbd2 {[%clk 0:02:55.1]}
5... h6 {[%clk 0:02:39.6]} 6. Bxf6 {[%clk 0:02:54.6]} 6... Qxf6 {[%clk
0:02:39.7]} 7. e3 {[%clk 0:02:55.8]} 7... d6 {[%clk 0:02:35.4]} 8. a3 {[%clk
0:02:52.7]} 8... Bxd2+ {[%clk 0:02:35.6]} 9. Qxd2 {[%clk 0:02:53.5]} 9... O-O
{[%clk 0:02:36.8]} 10. Be2 {[%clk 0:02:37.7]} 10... e5 {[%clk 0:02:37.3]} 11.
dxe5 {[%clk 0:02:30]} 11... dxe5 {[%clk 0:02:37.1]} 12. O-O {[%clk 0:02:25.3]}
12... Rd8 {[%clk 0:02:36.1]} 13. Qc3 {[%clk 0:02:22.5]} 13... Bg4 {[%clk
0:02:36.4]} 14. h3 {[%clk 0:02:21.4]} 14... Bh5 {[%clk 0:02:36.3]} 15. g4 {[%clk
0:01:39.6]} 15... Bg6 {[%clk 0:02:29]} 16. Rfd1 {[%clk 0:01:35.5]} 16... Qe7
{[%clk 0:02:06.6]} 17. b4 {[%clk 0:01:22.3]} 17... e4 {[%clk 0:02:06.1]} 18. Nd4
{[%clk 0:01:16.9]} 18... Ne5 {[%clk 0:02:06.4]} 19. c5 {[%clk 0:01:03.2]} 19...
Qh4 {[%clk 0:01:40.9]} 20. Nf5 {[%clk 0:00:44.6]} 20... Qf6 {[%clk 0:01:32.4]}
21. Nd4 {[%clk 0:00:23.3]} 21... Nf3+ {[%clk 0:01:15.7]} 22. Bxf3 {[%clk
0:00:20.3]} 22... exf3 {[%clk 0:01:16.2]} 23. Rac1 {[%clk 0:00:12.7]} 23... Be4
{[%clk 0:00:58]} 24. Nf5 {[%clk 0:00:07.4]} 24... Qg5 {[%clk 0:00:49.3]} 25. Ng3
{[%clk 0:00:05.8]} 25... Qh4 {[%clk 0:00:30.8]} 26. Kh2 {[%clk 0:00:04.8]} 26...
Bc6 {[%clk 0:00:30.2]} 27. Rf1 {[%clk 0:00:03.9]} 27... Bb5 {[%clk 0:00:21.3]}
28. Nf5 {[%clk 0:00:03.9]} 28... Qg5 {[%clk 0:00:19.2]} 29. Rfd1 {[%clk
0:00:02.2]} 29... h5 {[%clk 0:00:13.5]} 0-1

[Event "*** Titled Tuesday 3|2 Blitz"]
[Site "Chess.com"]
[Date "2015.09.01"]
[Round "7"]
[White "dretch"]
[Black "Boryboy"]
[Result "0-1"]
[WhiteElo "2596"]
[BlackElo "2513"]
[TimeControl "180+2"]
[EndTime "12:26:25 PDT"]
[Termination "Boryboy won on time"]

1. d4 {[%clk 0:03:01.9]} 1... e6 {[%clk 0:03:00.4]} 2. c4 {[%clk 0:03:02.8]}
2... d5 {[%clk 0:03:01.2]} 3. Nc3 {[%clk 0:03:03.5]} 3... Nf6 {[%clk 0:03:01.7]}
4. cxd5 {[%clk 0:03:04.8]} 4... exd5 {[%clk 0:03:02.2]} 5. Bg5 {[%clk
0:03:05.8]} 5... c6 {[%clk 0:03:02.9]} 6. e3 {[%clk 0:03:06.7]} 6... Be7 {[%clk
0:03:01.6]} 7. Bd3 {[%clk 0:03:07.3]} 7... Nbd7 {[%clk 0:03:02.6]} 8. Nge2
{[%clk 0:03:07.3]} 8... h6 {[%clk 0:03:03.3]} 9. Bh4 {[%clk 0:03:07.9]} 9... Ne4
{[%clk 0:03:00.3]} 10. Bxe7 {[%clk 0:03:08.2]} 10... Qxe7 {[%clk 0:03:02.2]} 11.
O-O {[%clk 0:03:07.9]} 11... Ndf6 {[%clk 0:03:01.8]} 12. Rb1 {[%clk 0:03:03.6]}
12... a5 {[%clk 0:03:01]} 13. Na4 {[%clk 0:03:00.9]} 13... O-O {[%clk
0:03:00.7]} 14. Nb6 {[%clk 0:03:01.4]} 14... Ra7 {[%clk 0:02:58.1]} 15. Nxc8
{[%clk 0:02:51.9]} 15... Rxc8 {[%clk 0:02:58.8]} 16. Rc1 {[%clk 0:02:46.9]}
16... Re8 {[%clk 0:02:55.2]} 17. Nc3 {[%clk 0:02:44.2]} 17... Nxc3 {[%clk
0:02:51.4]} 18. bxc3 {[%clk 0:02:44.8]} 18... Ne4 {[%clk 0:02:51.9]} 19. c4
{[%clk 0:02:42.9]} 19... Raa8 {[%clk 0:02:42.5]} 20. cxd5 {[%clk 0:02:43]} 20...
cxd5 {[%clk 0:02:44.4]} 21. Qc2 {[%clk 0:02:32.5]} 21... h5 {[%clk 0:02:29.9]}
22. Qc7 {[%clk 0:02:19.1]} 22... Qa3 {[%clk 0:02:28.9]} 23. Bxe4 {[%clk
0:02:15.5]} 23... dxe4 {[%clk 0:02:28.7]} 24. Rc2 {[%clk 0:02:05.2]} 24... b5
{[%clk 0:02:24.2]} 25. d5 {[%clk 0:02:04.4]} 25... Red8 {[%clk 0:02:16]} 26. Rd1
{[%clk 0:02:03.9]} 26... Qd6 {[%clk 0:02:04.9]} 27. h4 {[%clk 0:01:58.7]} 27...
b4 {[%clk 0:02:04.9]} 28. Rd4 {[%clk 0:01:50.7]} 28... Qf6 {[%clk 0:01:30]} 29.
d6 {[%clk 0:01:45]} 29... Qxh4 {[%clk 0:01:29]} 30. d7 {[%clk 0:01:46.1]} 30...
Qe7 {[%clk 0:01:28.3]} 31. Rc5 {[%clk 0:01:37.5]} 31... a4 {[%clk 0:01:25.6]}
32. Re5 {[%clk 0:01:38.6]} 32... Qf8 {[%clk 0:01:25.8]} 33. Rdxe4 {[%clk
0:01:37]} 33... b3 {[%clk 0:01:27.2]} 34. axb3 {[%clk 0:01:30.8]} 34... axb3
{[%clk 0:01:29.1]} 35. Rxh5 {[%clk 0:00:50.2]} 35... b2 {[%clk 0:01:13.4]} 36.
Reh4 {[%clk 0:00:49.8]} 36... b1=Q+ {[%clk 0:01:12.7]} 37. Kh2 {[%clk 0:00:50]}
37... g5 {[%clk 0:00:30.1]} 38. Rh8+ {[%clk 0:00:11.2]} 38... Kg7 {[%clk
0:00:31.1]} 39. Rxf8 {[%clk 0:00:07.5]} 39... Rxf8 {[%clk 0:00:25.3]} 40. Qe5+
{[%clk 0:00:07.1]} 40... Kg6 {[%clk 0:00:19.2]} 0-1

[Event "*** Titled Tuesday 3|2 Blitz"]
[Site "Chess.com"]
[Date "2015.09.01"]
[Round "7"]
[White "Storne89"]
[Black "manubibi"]
[Result "1-0"]
[WhiteElo "2491"]
[BlackElo "2423"]
[TimeControl "180+2"]
[EndTime "12:26:36 PDT"]
[Termination "Storne89 won by resignation"]

1. e4 {[%clk 0:03:01.9]} 1... c5 {[%clk 0:03:00.4]} 2. Nf3 {[%clk 0:03:02.8]}
2... d6 {[%clk 0:03:01.1]} 3. d4 {[%clk 0:03:04]} 3... cxd4 {[%clk 0:03:02.4]}
4. Nxd4 {[%clk 0:03:05.9]} 4... Nf6 {[%clk 0:03:03.5]} 5. Nc3 {[%clk 0:03:07.5]}
5... a6 {[%clk 0:03:04.7]} 6. h3 {[%clk 0:03:09]} 6... e6 {[%clk 0:03:00.8]} 7.
g4 {[%clk 0:03:08.6]} 7... d5 {[%clk 0:03:01.1]} 8. Nde2 {[%clk 0:03:07]} 8...
Bb4 {[%clk 0:02:53.2]} 9. a3 {[%clk 0:03:07.3]} 9... Ba5 {[%clk 0:02:51.7]} 10.
b4 {[%clk 0:03:01.1]} 10... Bb6 {[%clk 0:02:52.6]} 11. exd5 {[%clk 0:02:59.6]}
11... exd5 {[%clk 0:02:53.2]} 12. g5 {[%clk 0:02:57.2]} 12... Ne4 {[%clk
0:02:37.9]} 13. Nxe4 {[%clk 0:02:57.8]} 13... dxe4 {[%clk 0:02:39.8]} 14. Qxd8+
{[%clk 0:02:58.6]} 14... Bxd8 {[%clk 0:02:41.7]} 15. Bg2 {[%clk 0:02:58.6]}
15... O-O {[%clk 0:02:40.2]} 16. Bxe4 {[%clk 0:02:53.3]} 16... Re8 {[%clk
0:02:41.1]} 17. Bg2 {[%clk 0:02:47.2]} 17... Nc6 {[%clk 0:02:41.5]} 18. Bxc6
{[%clk 0:02:36.5]} 18... bxc6 {[%clk 0:02:41.7]} 19. Be3 {[%clk 0:02:38.1]}
19... a5 {[%clk 0:02:34.7]} 20. Kd2 {[%clk 0:02:39.4]} 20... Be6 {[%clk
0:02:30.4]} 21. h4 {[%clk 0:02:36.4]} 21... Bd5 {[%clk 0:02:30.9]} 22. Rhe1
{[%clk 0:02:35.8]} 22... Be7 {[%clk 0:02:27.1]} 23. c3 {[%clk 0:02:27.3]} 23...
Bd6 {[%clk 0:02:15.8]} 24. Nf4 {[%clk 0:02:20.3]} 24... Bc4 {[%clk 0:02:05.1]}
25. Nd3 {[%clk 0:02:04.3]} 25... Re4 {[%clk 0:02:01.7]} 26. Bc5 {[%clk
0:02:04.4]} 26... Bf4+ {[%clk 0:01:08.9]} 27. Kc2 {[%clk 0:02:04.9]} 27... Rae8
{[%clk 0:00:58]} 28. Rxe4 {[%clk 0:02:00.8]} 28... Rxe4 {[%clk 0:00:59.9]} 29.
Nxf4 {[%clk 0:01:54.6]} 29... Rxf4 {[%clk 0:00:58.1]} 30. Rd1 {[%clk 0:01:48.6]}
30... h5 {[%clk 0:00:50.3]} 31. gxh6 {[%clk 0:01:29.1]} 31... axb4 {[%clk
0:00:51.4]} 32. cxb4 {[%clk 0:01:24.8]} 32... gxh6 {[%clk 0:00:46.1]} 33. Rg1+
{[%clk 0:01:15]} 33... Kh7 {[%clk 0:00:44.2]} 34. Kc3 {[%clk 0:01:14.9]} 34...
Be6 {[%clk 0:00:15.7]} 35. Bd4 {[%clk 0:01:12.4]} 35... f6 {[%clk 0:00:13.5]}
36. h5 {[%clk 0:01:06.7]} 36... Rf3+ {[%clk 0:00:12.9]} 37. Kd2 {[%clk 0:01:04]}
37... Rf5 {[%clk 0:00:10.8]} 38. a4 {[%clk 0:01:02.6]} 38... Bf7 {[%clk
0:00:06.1]} 39. Rc1 {[%clk 0:01:03.5]} 39... Bxh5 {[%clk 0:00:06.5]} 40. Rxc6
{[%clk 0:01:04.2]} 40... Bf3 {[%clk 0:00:08.1]} 41. Rxf6 {[%clk 0:01:01]} 41...
Rxf6 {[%clk 0:00:08.4]} 42. Bxf6 {[%clk 0:01:02.1]} 42... Kg6 {[%clk 0:00:10.3]}
43. Bd8 {[%clk 0:00:59.3]} 43... Kf5 {[%clk 0:00:10.3]} 44. Kc3 {[%clk 0:00:57]}
44... Ke6 {[%clk 0:00:10.4]} 45. b5 {[%clk 0:00:58.3]} 45... h5 {[%clk
0:00:09.1]} 46. a5 {[%clk 0:00:58.5]} 46... Kd7 {[%clk 0:00:11]} 47. Bh4 {[%clk
0:00:58.9]} 47... Kc7 {[%clk 0:00:10.9]} 48. Kb4 {[%clk 0:01:00]} 48... Kb7
{[%clk 0:00:10]} 49. Bg5 {[%clk 0:00:57.8]} 49... Kc7 {[%clk 0:00:10.5]} 50. a6
{[%clk 0:00:58.7]} 50... Kc8 {[%clk 0:00:04.2]} 51. b6 {[%clk 0:00:53.6]} 1-0